[Event "GER-chT Youth Countries 2020"]
[Site "Berlin"]
[Date "2020.09.30"]
[Round "2"]
[White "Yue, Qizhou"]
[Black "Kempe, Caius Emilian"]
[Result "0-1"]
[ECO "B24"]
[WhiteElo "1775"]
[BlackElo "1910"]
[Annotator "ChessBase"]
[PlyCount "68"]
[EventDate "2020.09.30"]
[EventType "team-tourn"]
[EventRounds "7"]
[EventCountry "GER"]
[SourceTitle "playchess.com"]
[Source "ChessBase"]
[SourceQuality "1"]
[WhiteTeam "Rheinland-Pfalz"]
[BlackTeam "Sachsen"]
[WhiteTeamCountry "GER"]
[BlackTeamCountry "GER"]
[TimeControl "30/5400+30:0"]

1. e4 {[%emt 0:00:00]} c5 {[%emt 0:00:00]} 2. Nc3 {[%emt 0:00:00]} Nc6 {[%emt 0:00:14]} 3. Bb5 {[%emt 0:00:15]} Nd4 {[%emt 0:00:22]} 4. Bc4 {[%emt 0:00:22]} g6 {[%emt 0:00:23]} 5. Nge2 {[%emt 0:01:10]} Bg7 {[%emt 0:00:41]} 6. O-O {[%emt 0:00:45]} e6 {[%emt 0:03:32]} 7. d3 {[%emt 0:01:14]} Ne7 {[%emt 0:00:30]} 8. Nxd4 {[%emt 0:06:17]} cxd4 {[%emt 0:00:13]} 9. Ne2 {[%emt 0:00:38]} O-O {[%emt 0:00:48]} 10. Bb3 {[%emt 0:01:41]} d5 {[%emt 0:00:40]} 11. Ng3 {[%emt 0:02:52]} b6 {[%emt 0:02:30]} 12. Bg5 {[%emt 0:03:00]} f6 {[%emt 0:02:31]} 13. Bd2 {[%emt 0:00:39]} a5 {[%emt 0:01:22]} 14. a4 {[%emt 0:01:29]} Kh8 {[%emt 0:00:22]} 15. h4 {[%emt 0:04:12]} Bb7 {[%emt 0:04:28]} 16. h5 {[%emt 0:03:31]} f5 {[%emt 0:01:16]} 17. exf5 {[%emt 0:06:11]} gxf5 {[%emt 0:04:57]} 18. h6 {[%emt 0:08:10]} Bf6 {[%emt 0:02:20]} 19. Qe2 {[%emt 0:07:24]} e5 {[%emt 0:01:06]} 20. Qh5 {[%emt 0:05:01]} f4 {[%emt 0:01:17]} 21. Nf5 {[%emt 0:05:18]} Nxf5 {[%emt 0:02:38]} 22. Qxf5 {[%emt 0:00:08]} Bc8 {[%emt 0:01:49]} 23. Qh5 {[%emt 0:00:13]} Be6 {[%emt 0:01:30]} 24. c3 {[%emt 0:05:58]} dxc3 {[%emt 0:03:41]} 25. Bxc3 {[%emt 0:00:37]} Bf7 {[%emt 0:00:41]} 26. Qd1 {[%emt 0:06:23]} Qd7 {[%emt 0:02:47]} 27. Bc2 {[%emt 0:02:09]} Rg8 {[%emt 0:00:54]} 28. Re1 {[%emt 0:03:59]} Qh3 {[%emt 0:01:39]} 29. g3 {[%emt 0:02:42]} fxg3 {[%emt 0:00:55]} 30. Qf3 {[%emt 0:01:24]} gxf2+ {[%emt 0:04:06]} 31. Kxf2 {[%emt 1:30:14]} Bh4+ {[%emt 1:30:11]} 32. Ke2 {[%emt 0:01:18]} Rg2+ {[%emt 0:00:38]} 33. Qxg2 {[%emt 0:02:13]} Qxg2+ {[%emt 0:00:03]} 34. Kd1 {[%emt 0:00:25]} Bh5+ {[%emt 0:01:09]} 0-1

[Event "GER-chT Youth Countries 2020"]
[Site "Berlin"]
[Date "2020.09.30"]
[Round "2"]
[White "Hagenbeck-Huebert, Ben"]
[Black "Reitz, Theresa"]
[Result "1/2-1/2"]
[ECO "B23"]
[WhiteElo "1749"]
[BlackElo "1886"]
[Annotator "NA"]
[PlyCount "70"]
[EventDate "2020.09.30"]
[EventType "team-tourn"]
[EventRounds "7"]
[EventCountry "GER"]
[SourceTitle "playchess.com"]
[Source "ChessBase"]
[SourceQuality "1"]
[WhiteTeam "Sachsen"]
[BlackTeam "Rheinland-Pfalz"]
[WhiteTeamCountry "GER"]
[BlackTeamCountry "GER"]
[TimeControl "30/5400+30:0"]

1. e4 {[%emt 0:00:00]} c5 {[%emt 0:00:00]} 2. Nc3 {[%emt 0:00:00]} a6 {[%emt 0:00:00]} 3. f4 {[%emt 0:00:12]} b5 {[%emt 0:00:10]} 4. Nf3 {[%emt 0:02:05]} Bb7 {[%emt 0:00:20]} 5. d3 {[%emt 0:01:09]} e6 {[%emt 0:00:21]} 6. a3 {[%emt 0:04:09]} d5 {[%emt 0:01:45]} 7. exd5 {[%emt 0:01:13]} exd5 {[%emt 0:00:16]} 8. Be2 {[%emt 0:01:12]} Nf6 {[%emt 0:00:56]} 9. d4 {[%emt 0:09:01]} Bd6 {[%emt 0:05:30]} 10. h3 {[%emt 0:03:25]} Qc7 {[%emt 0:10:07]} 11. Qd2 {[%emt 0:13:54]} O-O {[%emt 0:04:03]} 12. O-O {[%emt 0:03:39]} Nbd7 {[%emt 0:06:11]} 13. Kh1 {[%emt 0:04:06]} Rfe8 {[%emt 0:05:24]} 14. Ne5 {[%emt 0:05:16]} cxd4 {[%emt 0:06:28]} 15. Nxd7 {[%emt 0:00:32]} Qxd7 {[%emt 0:00:45]} 16. Qxd4 {[%emt 0:01:08]} Rac8 {[%emt 0:04:07]} 17. Bf3 {[%emt 0:01:57]} Rc4 {[%emt 0:03:03]} 18. Qd3 {[%emt 0:02:47]} Ne4 {[%emt 0:16:54]} 19. Ne2 {[%emt 0:06:03]} Qc7 {[%emt 0:17:02]} 20. c3 {[%emt 0:01:53]} Bc5 {[%emt 0:01:09]} 21. b3 {[%emt 0:01:32]} Rxc3 {[%emt 0:00:26]} 22. Nxc3 {[%emt 0:00:57]} Ng3+ {[%emt 0:03:23]} 23. Kh2 {[%emt 0:00:27]} Nxf1+ {[%emt 0:00:41]} 24. Qxf1 {[%emt 0:00:28]} Bd4 {[%emt 0:03:11]} 25. Bd2 {[%emt 0:03:26]} Bxc3 {[%emt 0:01:30]} 26. Rc1 {[%emt 0:00:42]} d4 {[%emt 0:01:04]} 27. Bxb7 {[%emt 0:00:26]} Qxb7 {[%emt 0:00:25]} 28. Bxc3 {[%emt 0:00:38]} dxc3 {[%emt 0:00:10]} 29. Rxc3 {[%emt 0:01:26]} Qe4 {[%emt 0:03:19]} 30. Qf3 {[%emt 0:02:57]} Qxf3 {[%emt 0:02:17]} 31. Rxf3 {[%emt 1:30:12]} g6 {[%emt 1:30:58]} 32. Rc3 {[%emt 0:01:58]} Re6 {[%emt 0:02:10]} 33. Kg3 {[%emt 0:01:34]} Kg7 {[%emt 0:00:06]} 34. Kf3 {[%emt 0:00:09]} Kf6 {[%emt 0:01:08]} 35. g4 {[%emt 0:01:04]} Rd6 {[%emt 0:00:35]} 1/2-1/2

[Event "GER-chT Youth Countries 2020"]
[Site "Berlin"]
[Date "2020.09.30"]
[Round "2"]
[White "Pohle, Saskia"]
[Black "Schreidl, Michael"]
[Result "0-1"]
[ECO "C55"]
[WhiteElo "1749"]
[BlackElo "1640"]
[Annotator "NA"]
[PlyCount "80"]
[EventDate "2020.09.30"]
[EventType "team-tourn"]
[EventRounds "7"]
[EventCountry "GER"]
[SourceTitle "playchess.com"]
[Source "ChessBase"]
[SourceQuality "1"]
[WhiteTeam "Sachsen"]
[BlackTeam "Rheinland-Pfalz"]
[WhiteTeamCountry "GER"]
[BlackTeamCountry "GER"]
[TimeControl "30/5400+30:0"]

1. e4 {[%emt 0:00:00]} e5 {[%emt 0:00:00]} 2. Nf3 {[%emt 0:00:00]} Nc6 {[%emt 0:00:00]} 3. d4 {[%emt 0:00:00]} exd4 {[%emt 0:00:00]} 4. Bc4 {[%emt 0:00:00]} Nf6 {[%emt 0:00:00]} 5. e5 {[%emt 0:00:00]} d5 {[%emt 0:00:00]} 6. Bb5 {[%emt 0:00:00]} Ne4 {[%emt 0:00:02]} 7. Nxd4 {[%emt 0:00:06]} Bd7 {[%emt 0:00:22]} 8. Bxc6 {[%emt 0:00:13]} bxc6 {[%emt 0:00:04]} 9. O-O {[%emt 0:00:07]} Bc5 {[%emt 0:04:48]} 10. f3 {[%emt 0:00:10]} Ng5 {[%emt 0:00:05]} 11. f4 {[%emt 0:00:04]} Ne4 {[%emt 0:00:13]} 12. Be3 {[%emt 0:00:11]} Bb6 {[%emt 0:00:20]} 13. Nd2 {[%emt 0:00:41]} Nxd2 {[%emt 0:00:06]} 14. Qxd2 {[%emt 0:00:05]} c5 {[%emt 0:00:52]} 15. Nf3 {[%emt 0:00:07]} d4 {[%emt 0:00:09]} 16. Bf2 {[%emt 0:00:05]} Bc6 {[%emt 0:00:36]} 17. Bh4 {[%emt 0:02:57]} Qd5 {[%emt 0:01:17]} 18. f5 {[%emt 0:01:58]} Kd7 {[%emt 0:01:29]} 19. Rad1 {[%emt 0:03:53]} Kc8 {[%emt 0:04:43]} 20. c3 {[%emt 0:02:54]} d3 {[%emt 0:01:22]} 21. Kh1 {[%emt 0:00:35]} c4 {[%emt 0:00:36]} 22. b3 {[%emt 0:01:23]} Kb7 {[%emt 0:03:01]} 23. bxc4 {[%emt 0:04:24]} Qxc4 {[%emt 0:00:15]} 24. Nd4 {[%emt 0:03:35]} Bd5 {[%emt 0:09:50]} 25. Rf2 {[%emt 0:08:18]} c5 {[%emt 0:02:36]} 26. Qxd3 {[%emt 0:04:44]} Qxd3 {[%emt 0:00:21]} 27. Rxd3 {[%emt 0:00:05]} cxd4 {[%emt 0:00:04]} 28. cxd4 {[%emt 0:00:06]} Rac8 {[%emt 0:00:28]} 29. h3 {[%emt 0:00:27]} Rc1+ {[%emt 0:00:53]} 30. Kh2 {[%emt 0:00:05]} Be4 {[%emt 0:00:41]} 31. Rdd2 {[%emt 1:30:39]} Ba5 {[%emt 1:33:17]} 32. Rb2+ {[%emt 0:02:21]} Kc6 {[%emt 0:03:31]} 33. Rf4 {[%emt 0:05:10]} Bc3 {[%emt 0:03:32]} 34. Rb3 {[%emt 0:01:19]} Bd5 {[%emt 0:02:07]} 35. Ra3 {[%emt 0:01:21]} a5 {[%emt 0:02:10]} 36. Rg4 {[%emt 0:07:36]} g6 {[%emt 0:02:34]} 37. fxg6 {[%emt 0:01:13]} hxg6 {[%emt 0:00:54]} 38. Bf6 {[%emt 0:00:48]} Rb8 {[%emt 0:01:16]} 39. Rg3 {[%emt 0:06:58]} Bd2 {[%emt 0:02:51]} 40. Rg4 {[%emt 0:02:34]} Rb2 {[%emt 0:01:57]} 0-1

[Event "GER-chT Youth Countries 2020"]
[Site "Berlin"]
[Date "2020.09.30"]
[Round "2"]
[White "Nitsche, Nikolai"]
[Black "Mueller, Sophie Charlotte"]
[Result "1-0"]
[ECO "A00"]
[WhiteElo "1721"]
[BlackElo "1459"]
[Annotator "NA"]
[PlyCount "48"]
[EventDate "2020.09.30"]
[EventType "team-tourn"]
[EventRounds "7"]
[EventCountry "GER"]
[SourceTitle "playchess.com"]
[Source "ChessBase"]
[SourceQuality "1"]
[WhiteTeam "Berlin"]
[BlackTeam "Mecklenburg-Vorpommern"]
[WhiteTeamCountry "GER"]
[TimeControl "30/5400+30:0"]

1. g3 {[%emt 0:00:02]} d6 {[%emt 0:00:00]} 2. Bg2 {[%emt 0:00:05]} g6 {[%emt 0:00:02]} 3. Nf3 {[%emt 0:00:07]} Bg7 {[%emt 0:00:24]} 4. O-O {[%emt 0:00:42]} Nf6 {[%emt 0:00:12]} 5. d3 {[%emt 0:01:29]} O-O {[%emt 0:00:32]} 6. e4 {[%emt 0:00:30]} c6 {[%emt 0:01:02]} 7. c3 {[%emt 0:00:19]} Nbd7 {[%emt 0:01:08]} 8. Bg5 {[%emt 0:00:38]} Qc7 {[%emt 0:01:20]} 9. Nbd2 {[%emt 0:01:05]} b5 {[%emt 0:02:19]} 10. Ne1 {[%emt 0:00:29]} e5 {[%emt 0:01:37]} 11. f4 {[%emt 0:01:51]} Qb6+ {[%emt 0:05:06]} 12. Kh1 {[%emt 0:00:12]} h6 {[%emt 0:02:25]} 13. Bxf6 {[%emt 0:01:00]} Nxf6 {[%emt 0:00:48]} 14. f5 {[%emt 0:03:22]} g5 {[%emt 0:04:18]} 15. Bf3 {[%emt 0:04:00]} Bb7 {[%emt 0:07:53]} 16. Qe2 {[%emt 0:12:43]} d5 {[%emt 0:05:17]} 17. h4 {[%emt 0:03:36]} Rfc8 {[%emt 0:08:18]} 18. Qg2 {[%emt 0:06:50]} g4 {[%emt 0:02:17]} 19. Bd1 {[%emt 0:02:37]} h5 {[%emt 0:01:03]} 20. d4 {[%emt 0:01:14]} Nxe4 {[%emt 0:08:26]} 21. Nxe4 {[%emt 0:00:24]} dxe4 {[%emt 0:00:08]} 22. f6 {[%emt 0:00:19]} Bh8 {[%emt 0:05:41]} 23. dxe5 {[%emt 0:02:27]} c5 {[%emt 0:04:54]} 24. Kh2 {[%emt 0:01:01]} Qe6 {[%emt 0:02:57]} 1-0

[Event "GER-chT Youth Countries 2020"]
[Site "Berlin"]
[Date "2020.09.30"]
[Round "2"]
[White "Werner, Rosalie"]
[Black "Moenster, Madita"]
[Result "1-0"]
[ECO "B92"]
[WhiteElo "1688"]
[BlackElo "1918"]
[Annotator "ChessBase"]
[PlyCount "97"]
[EventDate "2020.09.30"]
[EventType "team-tourn"]
[EventRounds "7"]
[EventCountry "GER"]
[SourceTitle "playchess.com"]
[Source "ChessBase"]
[SourceQuality "1"]
[WhiteTeam "Hessen"]
[BlackTeam "Niedersachsen"]
[WhiteTeamCountry "GER"]
[BlackTeamCountry "GER"]
[TimeControl "30/5400+30:0"]

1. e4 {[%emt 0:00:00]} c5 {[%emt 0:00:00]} 2. Nf3 {[%emt 0:00:00]} d6 {[%emt 0:00:00]} 3. d4 {[%emt 0:00:00]} cxd4 {[%emt 0:00:00]} 4. Nxd4 {[%emt 0:00:00]} Nf6 {[%emt 0:00:00]} 5. Nc3 {[%emt 0:00:00]} a6 {[%emt 0:00:09]} 6. Be2 {[%emt 0:00:12]} e5 {[%emt 0:00:12]} 7. Nb3 {[%emt 0:00:08]} Be7 {[%emt 0:00:12]} 8. O-O {[%emt 0:00:09]} O-O {[%emt 0:00:11]} 9. Re1 Be6 {[%emt 0:04:02]} 10. Bf3 {[%emt 0:00:16]} Nbd7 {[%emt 0:01:25]} 11. a4 {[%emt 0:00:17]} Rc8 {[%emt 0:03:56]} 12. Nd2 Qc7 {[%emt 0:13:49]} 13. Nf1 {[%emt 0:09:19]} Nb6 {[%emt 0:02:18]} 14. Ne3 {[%emt 0:01:55]} Qc5 {[%emt 0:04:41]} 15. a5 {[%emt 0:06:06]} Na8 16. Ned5 {[%emt 0:11:21]} Nxd5 {[%emt 0:09:29]} 17. exd5 {[%emt 0:00:36]} Bd7 18. g3 {[%emt 0:19:49]} f5 {[%emt 0:06:28]} 19. Bg2 {[%emt 0:13:32]} Qc7 {[%emt 0:07:09]} 20. Be3 {[%emt 0:02:28]} Qd8 {[%emt 0:01:32]} 21. Ne2 {[%emt 0:10:32]} Bf6 {[%emt 0:21:57]} 22. b3 {[%emt 0:02:50]} f4 {[%emt 0:06:01]} 23. gxf4 {[%emt 0:02:50]} exf4 {[%emt 0:01:04]} 24. Bd4 {[%emt 0:00:33]} Bxd4 {[%emt 0:03:25]} 25. Nxd4 {[%emt 0:00:17]} Qg5 {[%emt 0:01:27]} 26. c4 {[%emt 0:04:16]} Nc7 {[%emt 0:07:24]} 27. f3 {[%emt 0:01:18]} Rce8 {[%emt 0:01:27]} 28. Qd2 {[%emt 0:07:14]} Re5 {[%emt 0:01:42]} 29. Qf2 {[%emt 0:00:49]} Ne8 {[%emt 0:01:53]} 30. Re2 {[%emt 0:02:55]} Nf6 {[%emt 0:00:59]} 31. Rae1 {[%emt 1:31:46]} Rfe8 {[%emt 1:30:48]} 32. Kh1 {[%emt 0:01:33]} Bc8 {[%emt 0:01:19]} 33. Rg1 {[%emt 0:01:14]} Qh6 {[%emt 0:00:25]} 34. Rge1 {[%emt 0:00:53]} Bd7 {[%emt 0:00:58]} 35. Nc2 {[%emt 0:00:39]} Bf5 {[%emt 0:00:31]} 36. Nb4 {[%emt 0:00:33]} Nd7 {[%emt 0:00:28]} 37. Bf1 {[%emt 0:00:44]} Nc5 {[%emt 0:00:22]} 38. Rxe5 {[%emt 0:00:32]} dxe5 {[%emt 0:00:29]} 39. Qxc5 {[%emt 0:00:22]} e4 {[%emt 0:00:22]} 40. Bg2 {[%emt 0:00:31]} e3 {[%emt 0:00:38]} 41. d6 {[%emt 0:01:15]} Be6 {[%emt 0:00:00]} 42. Nd5 {[%emt 0:00:00]} Qh4 {[%emt 0:00:00]} 43. Re2 {[%emt 0:00:00]} Bh3 {[%emt 0:00:00]} 44. Ne7+ {[%emt 0:00:00]} Kh8 {[%emt 0:00:00]} 45. Qe5 {[%emt 0:00:00]} Rf8 {[%emt 0:00:00]} 46. Nd5 {[%emt 0:00:00]} Qh6 {[%emt 0:02:51]} 47. Nxf4 {[%emt 0:00:00]} Bxg2+ {[%emt 0:00:54]} 48. Nxg2 {[%emt 0:00:00]} Qg6 {[%emt 0:00:29]} 49. Rxe3 {[%emt 0:00:00]} 1-0

[Event "GER-chT Youth Countries 2020"]
[Site "Berlin"]
[Date "2020.09.30"]
[Round "2"]
[White "Schiewe, Nadin"]
[Black "Rudolph, Eva"]
[Result "0-1"]
[ECO "D05"]
[WhiteElo "1660"]
[BlackElo "1836"]
[Annotator "NA"]
[PlyCount "78"]
[EventDate "2020.09.30"]
[EventType "team-tourn"]
[EventRounds "7"]
[EventCountry "GER"]
[SourceTitle "playchess.com"]
[Source "ChessBase"]
[SourceQuality "1"]
[WhiteTeam "Brandenburg"]
[BlackTeam "Nordrhein-Westfalen"]
[WhiteTeamCountry "GER"]
[BlackTeamCountry "GER"]
[TimeControl "30/5400+30:0"]

1. d4 {[%emt 0:00:00]} d5 2. Nf3 {[%emt 0:00:00]} Nf6 {[%emt 0:00:06]} 3. e3 {[%emt 0:00:00]} e6 {[%emt 0:01:16]} 4. Bd3 {[%emt 0:00:14]} Be7 {[%emt 0:00:12]} 5. Ne5 {[%emt 0:03:27]} O-O {[%emt 0:02:56]} 6. O-O {[%emt 0:00:18]} c5 {[%emt 0:02:39]} 7. c3 {[%emt 0:00:27]} b6 {[%emt 0:01:27]} 8. Nd2 {[%emt 0:00:55]} Bb7 {[%emt 0:00:30]} 9. f4 {[%emt 0:01:36]} Nc6 {[%emt 0:01:18]} 10. Rf3 {[%emt 0:04:05]} Re8 {[%emt 0:17:25]} 11. Rh3 {[%emt 0:02:35]} g6 {[%emt 0:03:15]} 12. Qe1 {[%emt 0:06:55]} Nxe5 {[%emt 0:21:13]} 13. fxe5 {[%emt 0:01:05]} Ne4 {[%emt 0:00:24]} 14. Nxe4 {[%emt 0:04:36]} dxe4 {[%emt 0:00:15]} 15. Bc2 {[%emt 0:02:38]} Rc8 {[%emt 0:02:57]} 16. Bd2 {[%emt 0:03:41]} Qd5 {[%emt 0:05:25]} 17. Qf2 {[%emt 0:02:53]} Bg5 {[%emt 0:02:41]} 18. Bb3 {[%emt 0:19:26]} Qd8 {[%emt 0:04:19]} 19. Rd1 {[%emt 0:05:02]} Qe7 {[%emt 0:02:36]} 20. Qe2 {[%emt 0:05:11]} Red8 {[%emt 0:04:56]} 21. Qg4 {[%emt 0:05:08]} Bd5 {[%emt 0:08:11]} 22. Bc2 {[%emt 0:13:25]} h5 {[%emt 0:04:03]} 23. Qe2 {[%emt 0:02:12]} Kg7 {[%emt 0:00:58]} 24. a4 {[%emt 0:05:13]} Bc6 {[%emt 0:03:28]} 25. g3 {[%emt 0:05:44]} Qb7 {[%emt 0:02:42]} 26. b3 {[%emt 0:01:01]} Be7 {[%emt 0:02:06]} 27. Qf2 {[%emt 0:01:32]} Bg5 {[%emt 0:00:59]} 28. Qe2 {[%emt 0:00:44]} Qe7 {[%emt 0:03:04]} 29. Rf1 {[%emt 0:01:12]} Rh8 {[%emt 0:01:00]} 30. Rd1 {[%emt 0:01:39]} Ba8 {[%emt 0:00:20]} 31. Rc1 {[%emt 1:30:50]} Qc7 {[%emt 1:30:27]} 32. Bb1 {[%emt 0:01:19]} Rhd8 {[%emt 0:00:33]} 33. Qf2 {[%emt 0:00:43]} Bd5 {[%emt 0:00:48]} 34. b4 {[%emt 0:00:39]} cxb4 {[%emt 0:01:26]} 35. cxb4 {[%emt 0:00:17]} Qxc1+ {[%emt 0:00:27]} 36. Bxc1 {[%emt 0:00:04]} Rxc1+ {[%emt 0:00:08]} 37. Kg2 {[%emt 0:00:07]} Rdc8 {[%emt 0:01:07]} 38. b5 {[%emt 0:01:06]} Rxb1 {[%emt 0:00:34]} 39. Qe2 {[%emt 0:00:36]} Rbc1 {[%emt 0:00:24]} 0-1

[Event "GER-chT Youth Countries 2020"]
[Site "Berlin"]
[Date "2020.09.30"]
[Round "2"]
[White "Haubold, Christian Lucas"]
[Black "Schulz, Hannah"]
[Result "1-0"]
[ECO "B16"]
[WhiteElo "1615"]
[BlackElo "1589"]
[Annotator "NA"]
[PlyCount "59"]
[EventDate "2020.09.30"]
[EventType "team-tourn"]
[EventRounds "7"]
[EventCountry "GER"]
[SourceTitle "playchess.com"]
[Source "ChessBase"]
[SourceQuality "1"]
[WhiteTeam "Sachsen-Anhalt"]
[BlackTeam "Baden"]
[WhiteTeamCountry "GER"]
[BlackTeamCountry "GER"]
[TimeControl "30/5400+30:0"]

1. e4 c6 2. d4 d5 3. Nc3 dxe4 4. Nxe4 Nf6 5. Nxf6+ gxf6 6. Nf3 Bf5 7. c4 e6 8. a3 Nd7 9. Bf4 Bg7 10. Qd2 c5 11. d5 Ne5 12. Be2 exd5 13. cxd5 Be4 14. Nxe5 fxe5 15. Bb5+ Kf8 16. Be3 Qxd5 17. Qxd5 Bxd5 18. Bxc5+ Kg8 19. Rg1 a6 20. Ba4 b5 21. Bc2 Rc8 22. b4 e4 23. Rd1 Bc4 24. Kd2 f5 25. Kc1 Bh6+ 26. Kb1 Kf7 27. Rd7+ Kg6 28. Rd6+ Kh5 29. Bd1+ Kg5 30. h4+ 1-0

[Event "GER-chT Youth Countries 2020"]
[Site "Berlin"]
[Date "2020.09.30"]
[Round "2"]
[White "Goepfert, Christian"]
[Black "Zimmer, Tim"]
[Result "1-0"]
[ECO "C50"]
[WhiteElo "1603"]
[BlackElo "1025"]
[Annotator "NA"]
[PlyCount "85"]
[EventDate "2020.09.30"]
[EventType "team-tourn"]
[EventRounds "7"]
[EventCountry "GER"]
[SourceTitle "playchess.com"]
[Source "ChessBase"]
[SourceQuality "1"]
[WhiteTeam "Thüringen"]
[BlackTeam "Bremen"]
[BlackTeamCountry "GER"]
[TimeControl "30/5400+30:0"]

1. e4 {[%emt 0:00:00]} e5 {[%emt 0:00:00]} 2. Nf3 {[%emt 0:00:00]} Nc6 {[%emt 0:00:00]} 3. Bc4 {[%emt 0:00:00]} Nf6 {[%emt 0:00:10]} 4. d3 {[%emt 0:00:14]} Bc5 {[%emt 0:00:31]} 5. O-O {[%emt 0:00:30]} d6 {[%emt 0:01:02]} 6. h3 {[%emt 0:01:20]} Be6 {[%emt 0:02:29]} 7. Bb3 {[%emt 0:00:49]} Qd7 {[%emt 0:01:25]} 8. c3 {[%emt 0:01:16]} Bb6 {[%emt 0:03:31]} 9. Re1 {[%emt 0:00:25]} O-O-O {[%emt 0:03:56]} 10. Bc2 {[%emt 0:01:37]} d5 {[%emt 0:06:19]} 11. exd5 {[%emt 0:10:02]} Qxd5 {[%emt 0:01:29]} 12. b4 {[%emt 0:06:01]} e4 {[%emt 0:06:36]} 13. Bb3 {[%emt 0:06:24]} Qd7 {[%emt 0:01:23]} 14. Ng5 {[%emt 0:09:49]} Qxd3 {[%emt 0:03:47]} 15. Qxd3 {[%emt 0:01:47]} Rxd3 {[%emt 0:02:20]} 16. Nxe6 {[%emt 0:01:16]} fxe6 {[%emt 0:00:32]} 17. Bxe6+ {[%emt 0:00:02]} Kb8 {[%emt 0:00:48]} 18. Bc4 {[%emt 0:04:20]} Rd7 {[%emt 0:01:54]} 19. Bf4 {[%emt 0:03:28]} Rhd8 {[%emt 0:02:47]} 20. Na3 {[%emt 0:06:47]} Re7 {[%emt 0:07:06]} 21. Rad1 {[%emt 0:02:07]} Rxd1 {[%emt 0:03:35]} 22. Rxd1 {[%emt 0:00:02]} a6 {[%emt 0:00:25]} 23. Nc2 {[%emt 0:04:17]} Ne5 {[%emt 0:02:29]} 24. Be2 {[%emt 0:01:22]} Ng6 {[%emt 0:11:16]} 25. Bc1 {[%emt 0:05:18]} Rd7 {[%emt 0:11:16]} 26. Rxd7 {[%emt 0:03:27]} Nxd7 {[%emt 0:00:17]} 27. c4 {[%emt 0:07:14]} c5 {[%emt 0:01:36]} 28. a3 {[%emt 0:01:59]} Ne7 {[%emt 0:07:50]} 29. Ne3 {[%emt 0:02:46]} cxb4 {[%emt 0:00:59]} 30. axb4 {[%emt 0:00:03]} Bxe3 {[%emt 0:00:22]} 31. Bxe3 {[%emt 1:30:15]} Nf5 {[%emt 1:30:17]} 32. Bf4+ {[%emt 0:02:00]} Kc8 {[%emt 0:01:26]} 33. Bg4 {[%emt 0:01:30]} Ne7 {[%emt 0:02:15]} 34. Kf1 {[%emt 0:01:50]} Ng6 {[%emt 0:00:44]} 35. Bd6 {[%emt 0:02:20]} Kd8 {[%emt 0:00:58]} 36. g3 {[%emt 0:04:27]} Ke8 {[%emt 0:01:05]} 37. Ke2 {[%emt 0:00:53]} Nf6 {[%emt 0:00:16]} 38. Be6 {[%emt 0:00:25]} Nf8 {[%emt 0:01:12]} 39. Bc8 {[%emt 0:00:52]} b6 {[%emt 0:01:01]} 40. Bxa6 {[%emt 0:01:41]} Ne6 {[%emt 0:00:17]} 41. Bb5+ {[%emt 0:00:40]} Kd8 {[%emt 0:00:25]} 42. Ke3 {[%emt 0:00:24]} Nc7 {[%emt 0:01:03]} 43. Bc6 {[%emt 0:00:41]} 1-0

[Event "GER-chT Youth Countries 2020"]
[Site "Berlin"]
[Date "2020.09.30"]
[Round "2"]
[White "Kiefhaber, Tobias"]
[Black "Voigt, Anastasia"]
[Result "0-1"]
[ECO "D30"]
[WhiteElo "1542"]
[BlackElo "1562"]
[Annotator "NA"]
[PlyCount "66"]
[EventDate "2020.09.30"]
[EventType "team-tourn"]
[EventRounds "7"]
[EventCountry "GER"]
[SourceTitle "playchess.com"]
[Source "ChessBase"]
[SourceQuality "1"]
[WhiteTeam "Baden"]
[BlackTeam "Sachsen-Anhalt"]
[WhiteTeamCountry "GER"]
[BlackTeamCountry "GER"]
[TimeControl "30/5400+30:0"]

1. d4 d5 2. Nf3 Nf6 3. c4 e6 4. Bg5 Be7 5. e3 O-O 6. Bd3 b6 7. O-O c5 8. Qc2 Nbd7 9. Nc3 Bb7 10. Ne5 h6 11. Bh4 Nxe5 12. dxe5 Ng4 13. Bg3 Bh4 14. cxd5 Bxg3 15. hxg3 exd5 16. Bh7+ Kh8 17. Qf5 Bc8 18. Qc2 g6 19. Bxg6 fxg6 20. Qxg6 Qg5 21. Qd6 Rd8 22. Qc7 Ba6 23. f3 Qxe3+ 24. Kh1 Bxf1 25. fxg4 Qf2 26. Rxf1 Qxf1+ 27. Kh2 Rf8 28. Qd6 Qc1 29. Ne2 Qg5 30. Nf4 Rg8 31. Nh5 Rg6 32. Qxd5 Rag8 33. Nf4 Qxg4 0-1

[Event "GER-chT Youth Countries 2020"]
[Site "Berlin"]
[Date "2020.09.30"]
[Round "2"]
[White "Koenig, Emmilie"]
[Black "Wagner, Margarethe"]
[Result "0-1"]
[ECO "B08"]
[WhiteElo "1518"]
[BlackElo "1804"]
[Annotator "NA"]
[PlyCount "48"]
[EventDate "2020.09.30"]
[EventType "team-tourn"]
[EventRounds "7"]
[EventCountry "GER"]
[SourceTitle "playchess.com"]
[Source "ChessBase"]
[SourceQuality "1"]
[WhiteTeam "Bremen"]
[BlackTeam "Thüringen"]
[WhiteTeamCountry "GER"]
[BlackTeamCountry "GER"]
[TimeControl "30/5400+30:0"]

1. d4 {[%emt 0:00:00]} Nf6 {[%emt 0:00:00]} 2. Nf3 {[%emt 0:00:00]} g6 {[%emt 0:00:00]} 3. Nc3 {[%emt 0:00:00]} Bg7 {[%emt 0:00:20]} 4. e4 {[%emt 0:00:05]} d6 {[%emt 0:00:36]} 5. Bf4 {[%emt 0:00:30]} O-O {[%emt 0:01:53]} 6. Qd2 {[%emt 0:00:29]} a6 {[%emt 0:02:54]} 7. Bh6 {[%emt 0:01:40]} b5 {[%emt 0:04:31]} 8. Bd3 {[%emt 0:01:15]} Bb7 {[%emt 0:02:54]} 9. Bxg7 {[%emt 0:03:40]} Kxg7 {[%emt 0:00:09]} 10. a3 {[%emt 0:03:32]} c5 {[%emt 0:03:40]} 11. dxc5 {[%emt 0:04:33]} dxc5 {[%emt 0:00:38]} 12. Qf4 {[%emt 0:06:23]} Nbd7 {[%emt 0:08:04]} 13. O-O {[%emt 0:11:38]} e5 {[%emt 0:06:18]} 14. Qh4 {[%emt 0:14:25]} c4 {[%emt 0:02:03]} 15. Be2 {[%emt 0:05:10]} Nxe4 {[%emt 0:03:27]} 16. Qxd8 Raxd8 {[%emt 0:01:16]} 17. Nxe4 {[%emt 0:03:53]} Bxe4 {[%emt 0:00:10]} 18. c3 {[%emt 0:00:10]} f6 {[%emt 0:02:51]} 19. Rad1 {[%emt 0:02:05]} Nc5 {[%emt 0:01:31]} 20. Rxd8 {[%emt 0:04:04]} Rxd8 {[%emt 0:01:48]} 21. Rd1 {[%emt 0:01:35]} Rxd1+ {[%emt 0:07:21]} 22. Bxd1 {[%emt 0:00:02]} Nd3 {[%emt 0:01:07]} 23. b4 {[%emt 0:09:05]} Nb2 {[%emt 0:02:40]} 24. Be2 {[%emt 0:00:38]} Na4 {[%emt 0:02:41]} 0-1